Cogmind - Beta 11 *** ADVENTURER MODE // 2022.03.24 @ 11:12:47 Player: Sn@43 Result: Destroyed by D-53 Grenadier with Mini Grenade Launcher Performance ------------- Evolutions (0) 0 Regions Visited (2) 400 Robots Destroyed (19) 95 Value Destroyed (622) 622 Prototype IDs (1) 20 Alien Tech Used (0) 0 Bonus (0) 0 TOTAL SCORE: 1137 Bonus ------- None Cogmind --------- Core Integrity 0/250 Matter 265/300 Energy 70/250 System Corruption 0% Temperature Cool (12) Movement Rolling (140) Ox4 Location -10/Mines Parts ------- > --- POWER (1) -------- Ion Engine > --- PROPULSION (2) --- Wheel > --- UTILITY (2) ------ Improved Heat Sink High-capacity Storage Unit > --- WEAPON (2) ------- Advanced Beam Cannon > --- INVENTORY (20) --- Wheel Wheel Assault Rifle Peak State ------------ > --- POWER ------------ Ion Engine > --- PROPULSION ------- Wheel Wheel > --- UTILITY ---------- Improved Heat Sink Small Storage Unit > --- WEAPON ----------- Advanced Beam Cannon Light Assault Rifle > --- INVENTORY -------- Ion Engine Aluminum Leg Wheel Wheel Wheel EM Pulse Gun Advanced Beam Cannon Light Assault Rifle [Rating: 12] Favorites ----------- Power Ion Engine Engine Ion Engine Propulsion Wheel Wheel Wheel Utility Small Storage Unit Device Improved Heat Sink Storage Small Storage Unit Protection Light Armor Plating Weapon Advanced Beam Cannon Energy Gun Medium Laser Energy Cannon Advanced Beam Cannon Ballistic Gun Assault Rifle Build | -11 -10 -10 ------- Run | Scr Mat Min Slots Evolved . | . . . Power . | . . . Propulsion . | . . . Utility . | . . . Weapon . | . . . Parts Attached 22 | 6 9 7 Power 4 | 1 2 1 Engine 4 | 1 2 1 Core . | . . . Reactor . | . . . Propulsion 6 | 2 2 2 Treads . | . . . Leg . | . . . Wheel 6 | 2 2 2 Hover . | . . . Flight . | . . . Utility 6 | 1 3 2 Device 3 | . 2 1 Storage 2 | 1 . 1 Processor . | . . . Hackware . | . . . Protection 1 | . 1 . Artifact . | . . . Weapon 6 | 2 2 2 Energy Gun 2 | 1 . 1 Energy Cannon 2 | . 1 1 Ballistic Gun 2 | 1 1 . Ballistic Cannon . | . . . Launcher . | . . . Special Weapon . | . . . Impact Weapon . | . . . Slashing Weapon . | . . . Piercing Weapon . | . . . Special Melee Weapon . | . . . Unidentified Prototypes 1 | . 1 . Parts Lost 8 | . 1 7 Power 1 | . . 1 Propulsion 3 | . 1 2 Utility 1 | . . 1 Weapon 3 | . . 3 Highest Loss Streak 7 | . 1 7 To Critical Strikes . | . . . Average Slot Usage (%) 95 | . 93 99 Engine 14 | . 14 14 Wheel 27 | . 26 27 Device 3 | . 6 . Storage 14 | . 14 14 Protection 7 | . 2 13 Energy Gun 3 | . 7 . Energy Cannon 10 | . 6 14 Ballistic Gun 13 | . 14 13 Naked Turns . | . . . Heaviest Build 54 | 13 19 54 Greatest Support 26 | 26 26 20 Greatest Overweight (x) 4 | . 1 4 Average Overweight (x) . | . . . Largest Inventory Capacity 20 | 8 8 20 Average Capacity 9 | 7 8 12 Most Carried 9 | 4 8 9 Average Carried 7 | 2 6 7 Final Capacity 20 | 8 8 20 Final Carried 8 | 4 8 3 Class Distribution -------------------- 100% | Mutant Dominant Class ---------------- Mutant | -10/Materials Mutant | -10/Mines Resources | -11 -10 -10 ----------- Run | Scr Mat Min Matter Collected 462 | 241 150 71 Remotely . | . . . Salvage Created 665 | . 373 292 Parts 39 | . 27 12 Haulers Intercepted . | . . . Recyclers Shooed 1 | . 1 . Parts Field Recycled . | . . . Retrieved Matter . | . . . Parts Self-Destructed . | . . . Prevented . | . . . Kills | -11 -10 -10 ------- Run | Scr Mat Min Combat Hostiles Destroyed 17 | . 10 7 Guns 11 | . 7 4 Cannons 6 | . 3 3 Classes Destroyed 4 | . 3 1 Watcher 2 | . 2 . Swarmer 3 | . 3 . Grunt 13 | . 7 6 Demolisher 1 | . . 1 Best Kill Streak 3 | . 3 2 Combat Bots Only 3 | . 3 2 Max Kills in Single Turn 1 | . 1 1 Gunslinging . | . . . Exploded . | . . . Melee . | . . . Uniques/NPCs Destroyed . | . . . Combat | -11 -10 -10 -------- Run | Scr Mat Min Damage Taken 1086 | . 247 839 Core 256 | . 89 167 Absorbed by Shields . | . . . Regen/Repaired (Parts) 19 | . 19 . Core Remaining (%) 100 | 100 . . Volleys Fired 52 | . 30 22 Largest 2 | . 2 2 Hottest 108 | . 88 108 Shots Fired 100 | . 60 40 Gun 71 | . 51 20 Cannon 29 | . 9 20 Launcher . | . . . Special . | . . . Kinetic 48 | . 30 18 Thermal 50 | . 30 20 Explosive . | . . . Electromagnetic 2 | . . 2 Robot Hit Streak 32 | . 32 16 Robot Miss Streak 2 | . 2 2 Penetration Max . | . . . Secondary Targets . | . . . Shots Hit Robots 76 | . 44 32 Core Hits 33 | . 21 12 Critical Kills . | . . . Critical Parts Destroyed . | . . . Critical Strikes . | . . . Melee Attacks . | . . . Impact . | . . . Slashing . | . . . Piercing . | . . . Sneak Attacks . | . . . Combat Hostiles . | . . . Follow-up Attacks . | . . . Damage Inflicted 1093 | . 551 542 Guns 581 | . 394 187 Cannons 512 | . 157 355 Explosions . | . . . Melee . | . . . Ramming . | . . . Kinetic 320 | . 155 165 Thermal 751 | . 396 355 Explosive . | . . . Electromagnetic 22 | . . 22 Impact . | . . . Slashing . | . . . Piercing . | . . . Highest Corruption . | . . . Average Corruption . | . . . Corruption Purged . | . . . Corruption Blocked . | . . . Overload Shots . | . . . Overflow Damage . | . . . Projectiles . | . . . Explosions . | . . . Melee . | . . . Knockbacks . | . . . Impact . | . . . Kinetic . | . . . Secondary . | . . . Self-Inflicted Damage . | . . . Shots . | . . . Rammed . | . . . Targets Rammed . | . . . Kicked . | . . . Crushed . | . . . Highest Temperature 326 | . 326 258 Average Temperature 112 | . 119 105 Received Heat Transfer 327 | . 171 156 Siege Activations . | . . . Robots Corrupted . | . . . Combat Hostiles . | . . . Parts Fried . | . . . Impact Corruptions . | . . . Robots Melted . | . . . Combat Hostiles . | . . . Parts Melted 1 | . 1 . Heat Transferred 1591 | . 962 629 Parts Sabotaged . | . . . Parts Stolen . | . . . Parts Stripped . | . . . Power Chain Reactions . | . . . Missiles Intercepted . | . . . Alert | -11 -10 -10 ------- Run | Scr Mat Min Peak Influence 258 | . 258 180 Initial . | . . . Average 80 | . 94 70 Maximum Alert Level 1 | . 1 . Low Security (%) 91 | 100 84 100 Level 1 8 | . 15 . Level 2 . | . . . Level 3 . | . . . Level 4 . | . . . Level 5 . | . . . High Security . | . . . Max Security . | . . . Squads Dispatched 2 | . 2 . Investigation 2 | . 2 . Extermination . | . . . Reinforcement . | . . . Assault . | . . . Garrison . | . . . Intercept . | . . . Searches Triggered . | . . . Construction Impeded . | . . . Haulers Reinforced . | . . . Active Scanning Responses . | . . . Cargo Convoy Interrupts . | . . . Stealth | -11 -10 -10 --------- Run | Scr Mat Min Distress Signals . | . . . Communications Jammed . | . . . Distress Signals . | . . . Times Spotted 30 | . 19 11 Peak Tracking Total 6 | . 6 2 Tactical Retreats 3 | . 2 1 Traps | -11 -10 -10 ------- Run | Scr Mat Min Traps Triggered 3 | . 3 . Indirectly . | . . . Trap Hack Attempts . | . . . Triggered . | . . . Disarmed . | . . . Reprogrammed . | . . . Reused . | . . . Traps Extracted . | . . . Installed . | . . . Triggered . | . . . Machines | -11 -10 -10 ---------- Run | Scr Mat Min Machines Disabled . | . . . Max in Single Turn . | . . . Machines Sabotaged . | . . . Garrisons Compromised . | . . . Overloaded Fab Kills . | . . . Hacking | -11 -10 -10 --------- Run | Scr Mat Min Machines Accessed 11 | . 11 . Terminals 8 | . 8 . Fabricators . | . . . Repair Stations 1 | . 1 . Recycling Units 2 | . 2 . Scanalyzers . | . . . Garrison Access . | . . . Total Hacks 29 | . 29 . Successful 19 | . 19 . Failed 10 | . 10 . Catastrophic 2 | . 2 . Database Lockouts . | . . . Manual 25 | . 25 . Terminals 22 | . 22 . Fabricators . | . . . Repair Stations 2 | . 2 . Recycling Units 5 | . 5 . Scanalyzers . | . . . Garrison Access . | . . . Terminal Hacks 6 | . 6 . Robot Analysis 5 | . 5 . Unreport Threat 1 | . 1 . Fabricator Hacks . | . . . Repair Station Hacks 2 | . 2 . Scan Component 1 | . 1 . Repair 1 | . 1 . Recycling Unit Hacks 1 | . 1 . Retrieve Components 1 | . 1 . Scanalyzer . | . . . Garrison Access Hacks . | . . . Unauthorized Hacks 10 | . 10 . Terminals 8 | . 8 . Botnet 8 | . 8 . Fabricators . | . . . Repair Stations . | . . . Recycling Units 2 | . 2 . Mask 2 | . 2 . Scanalyzers . | . . . Garrison Access . | . . . Data Cores Recovered . | . . . Used . | . . . Hacking Detections 10 | . 10 . Full Trace Events 1 | . 1 . Feedback Events . | . . . Feedback Blocked . | . . . Robot Schematics Acquired . | . . . Robots Built . | . . . Authchips . | . . . Time . | . . . Total Robot Build Rating . | . . . Part Schematics Acquired . | . . . Parts Built . | . . . Authchips . | . . . Time . | . . . Total Part Build Rating . | . . . Parts Repaired 1 | . 1 . Time 38 | . 38 . Parts Recycled . | . . . Recycled Matter . | . . . Retrieved Matter . | . . . Retrieved Components 9 | . 9 . Parts Scanalyzed . | . . . Part Schematics Acquired . | . . . Parts Damaged . | . . . Bothacking | -11 -10 -10 ------------ Run | Scr Mat Min Used RIF Installer . | . . . Robots Hacked . | . . . Non-combat . | . . . Combat . | . . . Robot Hacks Applied . | . . . Relay Couplers Released . | . . . Fabnet Peak Effective % . | . . . Robots Rewired . | . . . Allies Hacked . | . . . Hacks Repelled . | . . . Allies | -11 -10 -10 -------- Run | Scr Mat Min Total Allies . | . . . Largest Group . | . . . Highest-Rated Group . | . . . Highest-Rated Ally . | . . . Total Orders . | . . . Ally Attacks . | . . . Total Damage . | . . . Kills . | . . . Allies Corrupted . | . . . Allies Melted . | . . . Intel | -11 -10 -10 ------- Run | Scr Mat Min Robot Analysis Total 5 | . 5 . Derelict Logs Recovered 2 | . . 2 Drone Launches . | . . . Drone Recoveries . | . . . Exploration | -11 -10 -10 ------------- Run | Scr Mat Min Turns Passed 1554 | 62 805 687 Spaces Moved 1346 | 55 673 618 Core 3 | 3 . . Treads . | . . . Legs . | . . . Wheels 1343 | 52 673 618 Hover . | . . . Flight . | . . . Fastest Speed 50 | 50 80 80 Average Speed 85 | 89 81 90 Slowest Speed 140 | 100 95 140 Overloaded Moves . | . . . Propulsion Burnouts . | . . . Robots Hopped . | . . . Cave-ins Triggered . | . . . Exploration Rate (%) 59 | 4 99 76 Regions Visited 2 Branch Regions 1 Pre-discovered Areas . | . . . Known Exits Taken . | . . . Unknown Exits Taken 2 | 1 1 . Scrap Searched 1 | . . 1 Spaces Dug . | . . . Terrain Destroyed . | . . . Melee . | . . . Projectile . | . . . AOE . | . . . Terrain Rammed . | . . . Walls Destroyed . | . . . Machines Disabled . | . . . Actions | -11 -10 -10 --------- Run | Scr Mat Min Total 1646 | 64 874 708 Wait 204 | . 145 59 Move 1344 | 54 672 618 Hop . | . . . Pick Up 13 | 4 9 . Fast Attach 8 | 6 2 . Attach 6 | . 1 5 Detach . | . . . Swap 8 | . 6 2 Drop 11 | . 9 2 Fire 52 | . 30 22 Melee . | . . . Ram . | . . . Kick . | . . . Crush . | . . . Escape Stasis . | . . . Rewire . | . . . Trap . | . . . Miscellaneous . | . . . Route ------- -11/Scrapyard -10/Materials (discovered 4 exits: [*Mat x3] / [*Min]) -10/Mines (discovered 3 exits: [*Mat x2] / [*Exi]) History --------- Turn | Location | Event 39 | -11/Scrapyard | Discovered new exit (range 15) 63 | -11/Scrapyard | Entered Materials 270 | -10/Materials | Discovered new exit (range 8) 305 | -10/Materials | Build established: Mutant 389 | -10/Materials | Discovered new exit (range 9) 496 | -10/Materials | Discovered new exit (range 15) 699 | -10/Materials | Discovered new exit (range 15) 794 | -10/Materials | Repaired Imp. Heat Sink 868 | -10/Materials | Entered Mines 917 | -10/Mines | Deemed a non-threat by the Exiles lab entrance 917 | -10/Mines | Discovered new exit (range 5) 925 | -10/Mines | Discovered new exit (range 7) 1015 | -10/Mines | Learned Materials terminal intel 1019 | -10/Mines | Discovered new exit (range 10) 1199 | -10/Mines | Learned Materials garrison access intel 1326 | -10/Mines | Assembled infested the area 1542 | -10/Mines | Core integrity fell below 50% 1547 | -10/Mines | Core integrity fell below 20% 1555 | -10/Mines | Destroyed by D-53 Grenadier with Mini Grenade Launcher Last Messages --------------- 01414_ U-05 Engineer lays Concrete. 01415_ U-05 Engineer builds a Wall. 01416_ The unstable cave ceiling collapses. 01416_ U-05 Engineer lays Concrete. 01416_ K-01 Serf collects debris. 01419_ U-05 Engineer builds a Wall. 01420_ K-01 Serf collects debris. 01462_ Acquired 6 matter. 01530_ Assault Rifle destroyed. 01533_ Laser Drill disabled. 01533_ Lgt. Armor Plating destroyed. 01535_ The unstable cave ceiling collapses. 01540_ Wheel destroyed. 01541_ Adv. Beam Cannon destroyed. 01543_ Ion Engine destroyed. 01545_ Wheel destroyed. 01546_ The unstable cave ceiling collapses. 01551_ EM Pulse Gun destroyed. 01552_ D-53 Grenadier destroyed. 01553_ The unstable cave ceiling collapses. Map ----- +----------------------------------------------------+ | ## #####????????????????????????? | | # ????????????????????????? | | ??????????????????????????? | | #??????????????????????????????? | | #???????????????????????????????? | | *= #?#####??????????????????????????? | | =% ##### ##?????????????????????????? | | = %### ####??????????????????????? | | #####??????????????????? | | ##?????????????????? | | ## #?????????????????? | | #### # #?????????????????? | | #??## ### #####?????????????????? | | ##???# #?## ##???????????????????? | | #????# #?## ###???????####??????? | | ?????# #?# #??????## ##?????? | | ?????# #?# ####??## ###???? | | ?????# #?## # #### ##??? | | ?????# #??# #d * ## #??? | | ?????# #??#%### % ## #??? | | ?????# #??#! ### ##??? | | ?????# #??#### # ### ##???? | | ?????# #?????## ## ##????? | | ?????# #??????# #?????? | | ?????# #??###### ## #?????? | | ?????# #??# @ ##?????? | | ?????# #??# """ """ #??????? | | ?????# #??# """ """ #??????? | | ?????# #??# """ """ # #??????? | | ?????# #??# ## ##??????? | | ?????# #??# """ < ###### #???????? | | ?????# #??# """ #????# < ##??????? | | ?????# #??# """ #????# #??????? | | ?????# #??# #????## #??????? | | ?????# #??###########?????#### #??????? | | ?????# #?????????????????????# %#??????? | | ?????# #???????????????#######% #??????? | | ?????# ##########??????# #??????? | | ?????# # *%[ #??????# #??????? | | ?????# # [% #??????# ## ####??????? | | ?????# # = #??????# ## #?????????? | | ?????# # #??????# ## #?????????? | | ?????# ######## ## #?????????? | | ?????# ## ###???????? | | ?????#### ############ ##??????? | | ????????# #??????????### #??????? | | ????????##########???????????## ##??????? | | ?????????????????????????????# #???????? | | ?????????????????????????????# ##???????? | | ????????????????????????????#< #????????? | +----------------------------------------------------+ Best States ------------- Heat Dissipation 39 Energy Generation 10 Energy Capacity 250 Matter Stores 300 Matter Capacity 300 Sight Range 16 Terrain Scan Density 10 Armor Coverage 150 Resistance: KI 20 Resistance: TH 20 Resistance: EX 20 Resistance: EM 20 Resistance: I 20 Resistance: S 20 Resistance: P 20 Evasion (%) 44 Offensive Hacking 10 Item Schematics ----------------- None Robot Schematics ------------------ None Fabricated ------------ Nothing Alien Tech Used ----------------- None Achievements -------------- None Challenges ------------ None Game ------ Seed SalvageRecyclingComputer Manual? 0 Play Time 00:30:51 Cumulative 33.9 hours Start 2022.03.24 @ 10:28:18 End 2022.03.24 @ 11:12:47 Sessions 1 Manual Loads 0 Difficulty Adventurer Special Mode None Game No. 69 Rogue 46 Adventurer 23 Explorer 0 Win Type - Total 0 Types 0/0/0/0/0/0/0/0/0 Lore% 20 Gallery% 21 Achievement% 24 Wizard Run 0 Options --------- ASCII 0 Keyboard 0 Movement Mouse Keybinds 0 Fullscreen 1 Font 28/SmallcapsGlow Map View 84x54 Tactical HUD 1 Map Filters NONE Filters NONE Steam 1 RUN: d9b32c13-efa2-4e15-a988-73db1028feab